[Event "47th GRE-chT 2019"]
[Site "Patra"]
[Date "2019.07.03"]
[Round "3.9"]
[White "Spyratos, Nikolaos"]
[Black "Gavriil, Odysseas-Panagiotis"]
[Result "0-1"]
[ECO "B27"]
[WhiteElo "1970"]
[BlackElo "2038"]
[Annotator "NA"]
[PlyCount "92"]
[EventDate "2019.07.02"]
[EventCountry "GRE"]
[SourceTitle "playchess.com"]
[Source "ChessBase"]
[SourceQuality "1"]
[TimeControl "5400+30"]

1. e4 {[%emt 0:00:00]} c5 {[%emt 0:00:00]} 2. Nf3 {[%emt 0:00:00]} g6 {[%emt 0:00:00]} 3. Bc4 {[%emt 0:00:23]} Bg7 {[%emt 0:00:07]} 4. c3 {[%emt 0:00:17]} d6 {[%emt 0:00:43]} 5. d4 {[%emt 0:00:55]} cxd4 {[%emt 0:00:23]} 6. cxd4 {[%emt 0:00:24]} Nf6 {[%emt 0:00:21]} 7. Nc3 {[%emt 0:00:19]} O-O {[%emt 0:00:22]} 8. Bb3 {[%emt 0:01:49]} a6 {[%emt 0:00:36]} 9. O-O {[%emt 0:02:04]} b5 {[%emt 0:03:42]} 10. e5 {[%emt 0:05:17]} Ne8 {[%emt 0:05:57]} 11. Bg5 {[%emt 0:01:13]} h6 {[%emt 0:01:40]} 12. Bh4 {[%emt 0:00:13]} Nc7 {[%emt 0:20:49]} 13. exd6 {[%emt 0:04:01]} Qxd6 {[%emt 0:00:13]} 14. Rc1 {[%emt 0:02:13]} Ne6 {[%emt 0:10:19]} 15. Nd5 {[%emt 0:09:07]} g5 {[%emt 0:20:39]} 16. Bg3 {[%emt 0:00:08]} Nf4 {[%emt 0:00:06]} 17. Qd2 {[%emt 0:04:11]} Bb7 {[%emt 0:06:16]} 18. Nxf4 {[%emt 0:00:27]} gxf4 {[%emt 0:00:13]} 19. Bxf4 {[%emt 0:00:36]} Qg6 {[%emt 0:00:08]} 20. Rc3 {[%emt 0:05:49]} Kh8 {[%emt 0:05:44]} 21. Bc2 {[%emt 0:01:05]} f5 {[%emt 0:01:53]} 22. Bg3 {[%emt 0:14:14]} Nc6 {[%emt 0:03:47]} 23. Qf4 {[%emt 0:14:44]} Nxd4 {[%emt 0:04:55]} 24. Nxd4 {[%emt 0:02:05]} e5 {[%emt 0:00:01]} 25. Qxe5 {[%emt 0:09:55]} f4 {[%emt 0:11:44]} 26. Bxg6 {[%emt 0:02:09]} Bxe5 {[%emt 0:00:02]} 27. Rd3 {[%emt 0:02:52]} fxg3 {[%emt 0:00:41]} 28. hxg3 {[%emt 0:00:45]} Rf6 {[%emt 0:00:43]} 29. Bh5 {[%emt 0:01:38]} Rd6 {[%emt 0:00:19]} 30. Rfd1 {[%emt 0:00:51]} Rad8 {[%emt 0:00:13]} 31. Nf3 {[%emt 0:01:03]} Rxd3 {[%emt 0:00:37]} 32. Rxd3 {[%emt 0:00:07]} Rxd3 {[%emt 0:00:03]} 33. Nxe5 {[%emt 0:00:07]} Rd2 {[%emt 0:00:37]} 34. b4 {[%emt 0:01:40]} Rxa2 {[%emt 0:01:20]} 35. Nd3 {[%emt 0:00:41]} Bd5 {[%emt 0:00:42]} 36. Be8 {[%emt 0:01:33]} Ra1+ {[%emt 0:00:34]} 37. Kh2 {[%emt 0:00:02]} Rb1 {[%emt 0:00:31]} 38. Bd7 {[%emt 0:00:25]} Bc4 {[%emt 0:00:51]} 39. Nc5 {[%emt 0:00:05]} Rxb4 {[%emt 0:00:13]} 40. Nxa6 {[%emt 0:00:00]} Rb2 {[%emt 0:00:00]} 41. f4 {[%emt 0:00:00]} Bd5 {[%emt 0:00:00]} 42. Bh3 {[%emt 0:00:00]} b4 {[%emt 0:00:00]} 43. f5 {[%emt 0:00:00]} b3 {[%emt 0:00:00]} 44. Nc7 {[%emt 0:00:00]} Rd2 {[%emt 0:00:00]} 45. f6 {[%emt 0:00:00]} b2 {[%emt 0:00:00]} 46. Bf5 {[%emt 0:00:00]} Bf7 {[%emt 0:00:00]} 0-1

[Event "47th GRE-chT 2019"]
[Site "Patra"]
[Date "2019.07.03"]
[Round "3.9"]
[White "Koutlas, Nikolaos"]
[Black "Drakonakis, Athanasios"]
[Result "1-0"]
[ECO "B85"]
[WhiteElo "1969"]
[BlackElo "1624"]
[Annotator "NA"]
[PlyCount "69"]
[EventDate "2019.07.02"]
[EventCountry "GRE"]
[SourceTitle "playchess.com"]
[Source "ChessBase"]
[SourceQuality "1"]
[TimeControl "5400+30"]

1. e4 {[%emt 0:00:00]} c5 {[%emt 0:02:36]} 2. Nf3 {[%emt 0:00:00]} e6 {[%emt 0:00:25]} 3. d4 {[%emt 0:00:00]} cxd4 {[%emt 0:00:04]} 4. Nxd4 {[%emt 0:00:00]} Nf6 {[%emt 0:00:07]} 5. Nc3 {[%emt 0:00:05]} d6 {[%emt 0:00:06]} 6. Be2 {[%emt 0:00:57]} Be7 {[%emt 0:00:08]} 7. Be3 {[%emt 0:00:25]} a6 {[%emt 0:00:09]} 8. O-O {[%emt 0:01:22]} O-O {[%emt 0:00:40]} 9. f4 {[%emt 0:00:57]} Qc7 {[%emt 0:01:09]} 10. Bf3 {[%emt 0:01:04]} Nc6 {[%emt 0:00:24]} 11. Kh1 {[%emt 0:04:38]} Bd7 {[%emt 0:04:44]} 12. Nb3 {[%emt 0:00:43]} Rab8 {[%emt 0:06:28]} 13. Qe1 {[%emt 0:04:31]} b6 {[%emt 0:17:58]} 14. Rd1 {[%emt 0:04:08]} Bc8 {[%emt 0:01:58]} 15. Qg3 {[%emt 0:02:02]} Re8 {[%emt 0:04:30]} 16. e5 {[%emt 0:07:06]} Nd7 {[%emt 0:07:40]} 17. Bxc6 {[%emt 0:10:52]} Qxc6 {[%emt 0:00:07]} 18. Nd4 {[%emt 0:02:11]} Qc7 {[%emt 0:00:52]} 19. exd6 {[%emt 0:00:31]} Bxd6 {[%emt 0:00:09]} 20. Ndb5 {[%emt 0:00:27]} axb5 {[%emt 0:01:51]} 21. Nxb5 {[%emt 0:00:10]} Qxc2 {[%emt 0:00:12]} 22. Nxd6 {[%emt 0:00:08]} Rd8 {[%emt 0:08:06]} 23. f5 {[%emt 0:07:06]} Bb7 {[%emt 0:09:00]} 24. Nxb7 {[%emt 0:05:36]} Rxb7 {[%emt 0:00:05]} 25. Bd4 {[%emt 0:00:59]} f6 {[%emt 0:05:49]} 26. Bxf6 {[%emt 0:00:53]} Nxf6 {[%emt 0:02:08]} 27. Rxd8+ {[%emt 0:00:13]} Kf7 {[%emt 0:00:05]} 28. fxe6+ {[%emt 0:00:08]} Kxe6 {[%emt 0:00:31]} 29. Qd6+ {[%emt 0:00:07]} Kf7 {[%emt 0:00:16]} 30. Rf8+ {[%emt 0:00:09]} Kg6 {[%emt 0:00:16]} 31. R8xf6+ {[%emt 0:00:07]} gxf6 {[%emt 0:00:18]} 32. Qxf6+ {[%emt 0:00:07]} Kh5 {[%emt 0:00:08]} 33. g4+ {[%emt 0:00:23]} Kxg4 {[%emt 0:00:16]} 34. Rf4+ {[%emt 0:00:07]} Kh5 {[%emt 0:00:34]} 35. Rh4# {[%emt 0:00:04]} 1-0

[Event "47th GRE-chT 2019"]
[Site "Patra"]
[Date "2019.07.03"]
[Round "3.10"]
[White "Karamichos, Michail"]
[Black "Giannoulis, Grigorios"]
[Result "1-0"]
[ECO "C60"]
[WhiteElo "1559"]
[BlackElo "1447"]
[Annotator "NA"]
[PlyCount "53"]
[EventDate "2019.07.02"]
[EventCountry "GRE"]
[SourceTitle "playchess.com"]
[Source "ChessBase"]
[SourceQuality "1"]
[TimeControl "5400+30"]

1. e4 {[%emt 0:00:00]} e5 {[%emt 0:00:59]} 2. Nf3 {[%emt 0:00:00]} Nc6 {[%emt 0:00:24]} 3. Bb5 {[%emt 0:00:09]} Nge7 {[%emt 0:00:15]} 4. O-O {[%emt 0:00:53]} g6 {[%emt 0:00:36]} 5. c3 {[%emt 0:00:22]} Bg7 {[%emt 0:00:35]} 6. d4 {[%emt 0:00:40]} exd4 {[%emt 0:00:27]} 7. cxd4 {[%emt 0:00:11]} d5 {[%emt 0:00:09]} 8. e5 {[%emt 0:00:55]} O-O {[%emt 0:00:29]} 9. h3 {[%emt 0:01:13]} Bf5 {[%emt 0:01:26]} 10. Nc3 {[%emt 0:00:29]} f6 {[%emt 0:02:47]} 11. Re1 {[%emt 0:04:07]} fxe5 {[%emt 0:03:11]} 12. dxe5 {[%emt 0:02:05]} Nb4 {[%emt 0:02:02]} 13. Nd4 {[%emt 0:04:58]} a6 {[%emt 0:07:27]} 14. Bf1 {[%emt 0:02:16]} c5 {[%emt 0:00:36]} 15. Nxf5 {[%emt 0:00:21]} Rxf5 {[%emt 0:00:14]} 16. a3 {[%emt 0:01:37]} Nbc6 {[%emt 0:01:35]} 17. f4 {[%emt 0:00:47]} Nd4 {[%emt 0:07:21]} 18. g3 {[%emt 0:07:52]} Qc7 {[%emt 0:18:49]} 19. Bg2 {[%emt 0:02:56]} Rd8 {[%emt 0:00:58]} 20. Be3 {[%emt 0:01:19]} Qb6 {[%emt 0:11:15]} 21. Na4 {[%emt 0:01:09]} Qb5 {[%emt 0:02:37]} 22. Nxc5 {[%emt 0:01:07]} Qxc5 {[%emt 0:00:41]} 23. Bxd4 {[%emt 0:00:18]} Qb5 {[%emt 0:00:23]} 24. Rc1 {[%emt 0:05:38]} Rff8 {[%emt 0:01:02]} 25. Bc5 {[%emt 0:04:11]} Rfe8 {[%emt 0:00:20]} 26. b4 {[%emt 0:02:07]} b6 {[%emt 0:01:50]} 27. a4 {[%emt 0:03:07]} 1-0

[Event "47th GRE-chT 2019"]
[Site "Patra"]
[Date "2019.07.03"]
[Round "3.10"]
[White "Samaras, Vasileios"]
[Black "Dogias, Christos"]
[Result "1/2-1/2"]
[ECO "B85"]
[WhiteElo "1263"]
[BlackElo "1409"]
[Annotator "NA"]
[PlyCount "110"]
[EventDate "2019.07.02"]
[EventCountry "GRE"]
[SourceTitle "playchess.com"]
[Source "ChessBase"]
[SourceQuality "1"]
[TimeControl "5400+30"]

1. e4 {[%emt 0:00:00]} c5 {[%emt 0:02:51]} 2. Nf3 {[%emt 0:00:00]} e6 {[%emt 0:00:05]} 3. d4 {[%emt 0:00:00]} cxd4 {[%emt 0:00:03]} 4. Nxd4 {[%emt 0:00:06]} Nc6 {[%emt 0:00:05]} 5. Nc3 {[%emt 0:00:07]} Qc7 {[%emt 0:00:08]} 6. Be3 {[%emt 0:00:08]} a6 {[%emt 0:00:07]} 7. Be2 {[%emt 0:00:16]} Nf6 {[%emt 0:00:13]} 8. O-O {[%emt 0:00:32]} Be7 {[%emt 0:07:30]} 9. f4 {[%emt 0:00:41]} d6 {[%emt 0:00:35]} 10. Bf3 {[%emt 0:00:24]} O-O {[%emt 0:00:15]} 11. Kh1 {[%emt 0:01:35]} Na5 {[%emt 0:06:24]} 12. g4 {[%emt 0:01:03]} Nc4 {[%emt 0:00:47]} 13. Bc1 {[%emt 0:02:23]} e5 {[%emt 0:01:13]} 14. fxe5 {[%emt 0:00:20]} dxe5 {[%emt 0:00:12]} 15. Nf5 {[%emt 0:03:25]} Rd8 {[%emt 0:00:55]} 16. Qe2 {[%emt 0:01:06]} Be6 {[%emt 0:02:47]} 17. b3 {[%emt 0:01:10]} Na5 {[%emt 0:00:08]} 18. Bb2 {[%emt 0:00:07]} Nc6 {[%emt 0:00:19]} 19. Rad1 {[%emt 0:01:32]} Nd4 {[%emt 0:05:49]} 20. Nxd4 {[%emt 0:00:19]} exd4 {[%emt 0:00:07]} 21. Nd5 {[%emt 0:00:28]} Nxd5 {[%emt 0:00:11]} 22. exd5 {[%emt 0:00:08]} Bxd5 {[%emt 0:00:07]} 23. Bxd5 {[%emt 0:00:13]} Rxd5 {[%emt 0:01:43]} 24. Rxd4 {[%emt 0:00:26]} Qc6 {[%emt 0:00:44]} 25. Rxd5 {[%emt 0:00:06]} Qxd5+ {[%emt 0:00:09]} 26. Qf3 {[%emt 0:00:47]} Qxf3+ {[%emt 0:00:11]} 27. Rxf3 {[%emt 0:00:46]} h6 {[%emt 0:00:12]} 28. Rd3 {[%emt 0:00:49]} Rd8 {[%emt 0:01:09]} 29. Kg2 {[%emt 0:00:37]} Rd6 {[%emt 0:00:36]} 30. Kf3 {[%emt 0:00:19]} Re6 {[%emt 0:01:05]} 31. Rd7 {[%emt 0:00:31]} Bf6 {[%emt 0:00:52]} 32. Bxf6 {[%emt 0:00:07]} Rxf6+ {[%emt 0:00:08]} 33. Kg3 {[%emt 0:00:56]} b6 {[%emt 0:03:50]} 34. Ra7 {[%emt 0:00:12]} a5 {[%emt 0:00:07]} 35. Rd7 {[%emt 0:00:37]} g6 {[%emt 0:00:30]} 36. Rd5 {[%emt 0:00:24]} Kg7 {[%emt 0:01:02]} 37. c4 {[%emt 0:00:13]} Rc6 {[%emt 0:02:12]} 38. Kf2 {[%emt 0:00:39]} Kf6 {[%emt 0:00:26]} 39. Ke3 {[%emt 0:00:47]} Ke6 {[%emt 0:00:00]} 40. Kd4 {[%emt 0:00:00]} f5 {[%emt 0:00:00]} 41. gxf5+ {[%emt 0:00:00]} gxf5 {[%emt 0:00:00]} 42. Ke3 {[%emt 0:00:00]} a4 {[%emt 0:00:00]} 43. Kf4 {[%emt 0:00:00]} axb3 {[%emt 0:00:00]} 44. axb3 {[%emt 0:00:00]} Rc5 {[%emt 0:00:00]} 45. Rd8 {[%emt 0:00:00]} b5 {[%emt 0:00:00]} 46. Rh8 {[%emt 0:00:00]} bxc4 {[%emt 0:00:00]} 47. Rxh6+ {[%emt 0:00:00]} Kf7 {[%emt 0:00:00]} 48. bxc4 {[%emt 0:00:00]} Rxc4+ {[%emt 0:00:00]} 49. Kxf5 {[%emt 0:00:00]} Rc5+ {[%emt 0:00:00]} 50. Ke4 {[%emt 0:00:00]} Kg7 {[%emt 0:00:00]} 51. Rh3 {[%emt 0:00:00]} Ra5 {[%emt 0:00:00]} 52. Rg3+ {[%emt 0:00:00]} Kh6 {[%emt 0:00:00]} 53. Rg1 {[%emt 0:00:00]} Kh5 {[%emt 0:00:00]} 54. Kf3 {[%emt 0:00:00]} Ra3+ {[%emt 0:00:00]} 55. Kf4 {[%emt 0:00:00]} Ra4+ {[%emt 0:06:16] Ke4} 1/2-1/2

[Event "47th GRE-chT 2019"]
[Site "Patra"]
[Date "2019.07.03"]
[Round "3.11"]
[White "Czarnota, Pawel"]
[Black "Ivic, Velimir"]
[Result "0-1"]
[ECO "B33"]
[WhiteElo "2534"]
[BlackElo "2510"]
[Annotator "ChessBase"]
[PlyCount "76"]
[EventDate "2019.07.02"]
[EventCountry "GRE"]
[SourceTitle "playchess.com"]
[Source "ChessBase"]
[SourceQuality "1"]
[TimeControl "5400+30"]

1. e4 {[%emt 0:00:00]} c5 {[%emt 0:00:00]} 2. Nf3 {[%emt 0:00:00]} Nc6 {[%emt 0:00:00]} 3. d4 {[%emt 0:00:04]} cxd4 {[%emt 0:00:00]} 4. Nxd4 {[%emt 0:00:09]} Nf6 {[%emt 0:00:00]} 5. Nc3 {[%emt 0:00:16]} e5 {[%emt 0:00:10]} 6. Ndb5 {[%emt 0:00:19]} d6 {[%emt 0:00:08]} 7. Bg5 {[%emt 0:01:53]} a6 {[%emt 0:00:12]} 8. Na3 {[%emt 0:00:08]} b5 {[%emt 0:00:05]} 9. Bxf6 {[%emt 0:00:26]} gxf6 {[%emt 0:00:07]} 10. Nd5 {[%emt 0:00:18]} f5 {[%emt 0:00:21]} 11. Bd3 {[%emt 0:00:29]} Be6 {[%emt 0:00:17]} 12. O-O {[%emt 0:00:09]} Bxd5 {[%emt 0:00:06]} 13. exd5 {[%emt 0:00:05]} Ne7 {[%emt 0:00:05]} 14. Re1 {[%emt 0:00:31]} Bg7 {[%emt 0:01:10]} 15. Rb1 {[%emt 0:00:12]} O-O {[%emt 0:01:59]} 16. c4 {[%emt 0:00:18]} e4 {[%emt 0:01:59]} 17. Bf1 {[%emt 0:00:06]} Ng6 {[%emt 0:00:25]} 18. cxb5 {[%emt 0:00:50]} axb5 {[%emt 0:00:06]} 19. Bxb5 {[%emt 0:00:21]} Qg5 {[%emt 0:00:59]} 20. Re3 {[%emt 0:01:38]} Be5 {[%emt 0:25:03]} 21. Bc6 {[%emt 0:33:34]} Rab8 {[%emt 0:05:19]} 22. Nc4 {[%emt 0:00:56]} Kh8 {[%emt 0:01:06]} 23. Nxe5 {[%emt 0:06:43]} Nxe5 {[%emt 0:00:28]} 24. Rg3 {[%emt 0:06:27]} Qf6 {[%emt 0:02:41]} 25. Qh5 {[%emt 0:08:37]} Rg8 {[%emt 0:01:00]} 26. b3 {[%emt 0:01:58]} f4 {[%emt 0:07:18]} 27. Rh3 {[%emt 0:07:58]} Rg7 {[%emt 0:01:08]} 28. Rf1 {[%emt 0:05:12]} Rbg8 {[%emt 0:01:19]} 29. g3 {[%emt 0:00:51]} Nf3+ {[%emt 0:07:57]} 30. Kh1 {[%emt 0:01:58]} Nd2 {[%emt 0:02:05]} 31. Rd1 {[%emt 0:02:36]} e3 {[%emt 0:01:25]} 32. fxe3 {[%emt 0:07:27]} fxg3 {[%emt 0:07:59]} 33. hxg3 {[%emt 0:04:28]} Ne4 {[%emt 0:02:42]} 34. Rg1 {[%emt 0:04:48]} Nf2+ {[%emt 0:04:34]} 35. Kh2 {[%emt 0:00:44]} Nxh3 {[%emt 0:04:14]} 36. Qxh3 {[%emt 0:00:23]} Rg6 {[%emt 0:02:09]} 37. Qf1 {[%emt 0:01:23]} Rh6+ {[%emt 0:00:17]} 38. Kg2 {[%emt 0:00:06]} Qb2+ {[%emt 0:00:05]} 0-1

[Event "47th GRE-chT 2019"]
[Site "Patra"]
[Date "2019.07.03"]
[Round "3.12"]
[White "Argiroudis, Stamatis"]
[Black "Sandalakis, Nikolaos"]
[Result "1-0"]
[ECO "A06"]
[WhiteElo "2284"]
[BlackElo "2199"]
[Annotator "NA"]
[PlyCount "67"]
[EventDate "2019.07.02"]
[EventCountry "GRE"]
[SourceTitle "playchess.com"]
[Source "ChessBase"]
[SourceQuality "1"]
[TimeControl "5400+30"]

1. Nf3 {[%emt 0:00:00]} d5 {[%emt 0:02:25]} 2. e3 {[%emt 0:00:23]} Nf6 {[%emt 0:02:50]} 3. c4 {[%emt 0:00:16]} c6 {[%emt 0:01:28]} 4. Nc3 {[%emt 0:01:01]} g6 {[%emt 0:04:07]} 5. d4 {[%emt 0:05:41]} Bg7 {[%emt 0:00:12]} 6. h3 {[%emt 0:00:39]} O-O {[%emt 0:01:08]} 7. Be2 {[%emt 0:05:16]} Bf5 {[%emt 0:06:56]} 8. O-O {[%emt 0:01:49]} Ne4 {[%emt 0:02:11]} 9. cxd5 {[%emt 0:08:07]} cxd5 {[%emt 0:03:35]} 10. Qb3 {[%emt 0:00:20]} Nxc3 {[%emt 0:01:09]} 11. bxc3 {[%emt 0:00:11]} Qd7 {[%emt 0:06:38]} 12. a4 {[%emt 0:14:51]} Nc6 {[%emt 0:04:02]} 13. Rd1 {[%emt 0:00:40]} Na5 {[%emt 0:06:31]} 14. Qb4 {[%emt 0:00:13]} Qc7 {[%emt 0:03:48]} 15. Ba3 {[%emt 0:01:06]} Rfe8 {[%emt 0:01:41]} 16. Bb5 {[%emt 0:01:10]} Nc6 {[%emt 0:01:53]} 17. Qb3 {[%emt 0:03:17]} a6 {[%emt 0:08:43]} 18. Be2 {[%emt 0:01:00]} Red8 {[%emt 0:02:38]} 19. Bc5 {[%emt 0:02:14]} Rd7 {[%emt 0:10:46]} 20. g4 {[%emt 0:05:25]} Be4 {[%emt 0:05:48]} 21. Nd2 {[%emt 0:00:55]} Rc8 {[%emt 0:15:16]} 22. Qb6 {[%emt 0:12:11]} Qxb6 {[%emt 0:02:50]} 23. Bxb6 {[%emt 0:00:06]} g5 {[%emt 0:00:10]} 24. Nxe4 {[%emt 0:00:19]} dxe4 {[%emt 0:00:03]} 25. Rab1 {[%emt 0:04:22]} e6 {[%emt 0:00:34]} 26. Rb3 {[%emt 0:06:53]} Bf8 {[%emt 0:01:33]} 27. Rdb1 {[%emt 0:02:46]} Kg7 28. f3 {[%emt 0:01:24]} exf3 {[%emt 0:04:20]} 29. Bxf3 {[%emt 0:00:04]} Bd6 {[%emt 0:00:39]} 30. c4 {[%emt 0:02:06]} Bc7 {[%emt 0:00:24]} 31. c5 {[%emt 0:03:01]} Bb8 {[%emt 0:00:40]} 32. Be4 {[%emt 0:01:51]} h6 {[%emt 0:00:22]} 33. d5 {[%emt 0:03:57]} f5 34. dxc6 {[%emt 0:00:12]} 1-0

[Event "47th GRE-chT 2019"]
[Site "Patra"]
[Date "2019.07.03"]
[Round "3.13"]
[White "Naoum, Spyridon"]
[Black "Halkias, Stelios"]
[Result "1-0"]
[ECO "D36"]
[WhiteElo "2299"]
[BlackElo "2553"]
[Annotator "ChessBase"]
[PlyCount "125"]
[EventDate "2019.07.02"]
[EventCountry "GRE"]
[SourceTitle "playchess.com"]
[Source "ChessBase"]
[SourceQuality "1"]
[TimeControl "5400+30"]

1. d4 {[%emt 0:04:25]} d5 {[%emt 0:00:10]} 2. c4 {[%emt 0:01:40]} e6 {[%emt 0:00:23]} 3. Nc3 {[%emt 0:01:31]} Be7 {[%emt 0:02:12]} 4. Nf3 {[%emt 0:01:45]} Nf6 {[%emt 0:00:15]} 5. cxd5 {[%emt 0:00:09]} exd5 {[%emt 0:00:07]} 6. Qc2 {[%emt 0:03:04]} c6 {[%emt 0:05:44]} 7. Bg5 {[%emt 0:00:31]} g6 {[%emt 0:01:31]} 8. e3 {[%emt 0:09:14]} Bf5 {[%emt 0:00:49]} 9. Bd3 {[%emt 0:00:09]} Bxd3 {[%emt 0:00:07]} 10. Qxd3 {[%emt 0:00:03]} Nbd7 {[%emt 0:00:12]} 11. O-O-O {[%emt 0:02:54]} b5 {[%emt 0:04:10]} 12. Bxf6 {[%emt 0:04:31]} Bxf6 {[%emt 0:27:24]} 13. Kb1 {[%emt 0:07:34]} O-O {[%emt 0:04:47]} 14. h4 {[%emt 0:00:24]} Nb6 {[%emt 0:13:03]} 15. h5 {[%emt 0:02:54]} Nc4 {[%emt 0:02:19]} 16. e4 {[%emt 0:04:13]} Re8 {[%emt 0:06:15]} 17. hxg6 {[%emt 0:03:06]} hxg6 {[%emt 0:08:08]} 18. e5 {[%emt 0:03:01]} Bg7 {[%emt 0:02:07]} 19. Ne2 {[%emt 0:01:25]} c5 {[%emt 0:02:47]} 20. Nh4 {[%emt 0:10:30]} Qa5 {[%emt 0:13:26]} 21. f4 {[%emt 0:07:19]} Re6 {[%emt 0:01:57]} 22. dxc5 {[%emt 0:03:50]} Ra6 {[%emt 0:00:41]} 23. Nc1 {[%emt 0:03:01]} Qb4 {[%emt 0:01:09]} 24. Qc3 {[%emt 0:08:34]} Na3+ {[%emt 0:01:13]} 25. Ka1 {[%emt 0:00:05]} Qxf4 {[%emt 0:00:10]} 26. Nf3 {[%emt 0:02:17]} Nc4 {[%emt 0:01:12]} 27. Nd3 {[%emt 0:02:49]} Qf5 {[%emt 0:00:33]} 28. Nb4 {[%emt 0:08:37]} Re6 {[%emt 0:00:13]} 29. Nxd5 {[%emt 0:00:16]} Rc8 {[%emt 0:00:49]} 30. Nd4 {[%emt 0:00:34]} Qxe5 {[%emt 0:00:18]} 31. Nxe6 {[%emt 0:03:15]} Qxe6 {[%emt 0:00:39]} 32. Rhe1 {[%emt 0:00:27]} Bxc3 {[%emt 0:00:39]} 33. Rxe6 {[%emt 0:00:02]} Nxb2 {[%emt 0:00:27]} 34. Rc1 {[%emt 0:01:57]} fxe6 {[%emt 0:00:31]} 35. Ne7+ {[%emt 0:00:22]} Kf8 {[%emt 0:00:29]} 36. Nxc8 {[%emt 0:00:04]} b4 {[%emt 0:00:26]} 37. Kb1 {[%emt 0:01:06]} Nc4 {[%emt 0:00:28]} 38. Kc2 {[%emt 0:00:52]} a5 {[%emt 0:00:01]} 39. Nd6 {[%emt 0:00:21]} Nxd6 {[%emt 0:01:03]} 40. cxd6 {[%emt 0:00:00]} a4 {[%emt 0:00:00]} 41. d7 {[%emt 0:00:00]} Ke7 {[%emt 0:00:00]} 42. Rd1 {[%emt 0:00:00]} Kd8 {[%emt 0:00:00]} 43. Rd6 {[%emt 0:00:00]} e5 {[%emt 0:00:00]} 44. Rxg6 {[%emt 0:00:00]} Kxd7 {[%emt 0:00:00]} 45. Ra6 {[%emt 0:00:00]} a3 {[%emt 0:00:00]} 46. Kd3 {[%emt 0:00:00]} Ke7 {[%emt 0:00:00]} 47. g4 {[%emt 0:00:00]} Kf7 {[%emt 0:00:00]} 48. Ke4 {[%emt 0:00:00]} Kg7 {[%emt 0:00:00]} 49. Kf5 {[%emt 0:00:00]} Bd4 {[%emt 0:00:00]} 50. Ra4 {[%emt 0:00:00]} Bc3 {[%emt 0:00:00]} 51. Ra7+ {[%emt 0:00:00]} Kg8 {[%emt 0:01:29]} 52. Rb7 {[%emt 0:00:29]} Kf8 {[%emt 0:00:26]} 53. g5 {[%emt 0:01:21]} Kg8 {[%emt 0:01:35]} 54. g6 {[%emt 0:00:37]} e4 {[%emt 0:00:17]} 55. Kxe4 {[%emt 0:00:05]} Kf8 {[%emt 0:00:22]} 56. Kd3 {[%emt 0:03:13]} Kg8 {[%emt 0:00:35]} 57. Kc4 {[%emt 0:00:04]} Kf8 {[%emt 0:00:40]} 58. Rxb4 {[%emt 0:00:17]} Bxb4 {[%emt 0:00:03]} 59. Kxb4 {[%emt 0:00:03]} Kg7 {[%emt 0:00:04]} 60. Kxa3 {[%emt 0:00:02]} Kxg6 {[%emt 0:00:03]} 61. Kb4 {[%emt 0:00:06]} Kf7 {[%emt 0:00:04]} 62. Kc5 {[%emt 0:00:07]} Ke7 {[%emt 0:00:01]} 63. Kc6 {[%emt 0:00:13]} 1-0

[Event "47th GRE-chT 2019"]
[Site "Patra"]
[Date "2019.07.03"]
[Round "3.14"]
[White "Vragoteris, Antonios"]
[Black "Frontzos, Ioannis"]
[Result "1-0"]
[ECO "A14"]
[WhiteElo "2168"]
[BlackElo "1620"]
[Annotator "NA"]
[PlyCount "73"]
[EventDate "2019.07.02"]
[EventCountry "GRE"]
[SourceTitle "playchess.com"]
[Source "ChessBase"]
[SourceQuality "1"]
[TimeControl "5400+30"]

1. Nf3 {[%emt 0:04:24]} d5 {[%emt 0:00:00]} 2. c4 {[%emt 0:01:18]} e6 {[%emt 0:00:41]} 3. g3 {[%emt 0:00:22]} Nf6 {[%emt 0:00:44]} 4. Bg2 {[%emt 0:00:08]} Be7 {[%emt 0:01:37]} 5. O-O {[%emt 0:00:12]} O-O {[%emt 0:00:34]} 6. d4 {[%emt 0:01:18]} b6 {[%emt 0:09:10]} 7. Nc3 {[%emt 0:03:02]} Bb7 {[%emt 0:00:33]} 8. Ne5 {[%emt 0:00:45]} Nbd7 {[%emt 0:06:20]} 9. Qa4 Nxe5 {[%emt 0:05:05]} 10. dxe5 {[%emt 0:00:53]} Ne4 {[%emt 0:06:11]} 11. Nxe4 {[%emt 0:14:57]} dxe4 {[%emt 0:00:17]} 12. Be3 {[%emt 0:02:35]} Qe8 {[%emt 0:12:36]} 13. Qc2 {[%emt 0:05:12]} Qc6 {[%emt 0:02:14]} 14. Rac1 {[%emt 0:01:39]} Rad8 {[%emt 0:05:42]} 15. Rfd1 {[%emt 0:01:46]} Rxd1+ {[%emt 0:05:25]} 16. Rxd1 {[%emt 0:00:16]} Rd8 {[%emt 0:01:37]} 17. Rxd8+ {[%emt 0:00:53]} Bxd8 {[%emt 0:00:08]} 18. b4 {[%emt 0:00:30]} a6 {[%emt 0:06:48]} 19. a4 {[%emt 0:07:20]} b5 {[%emt 0:13:22]} 20. axb5 {[%emt 0:11:25]} axb5 {[%emt 0:00:10]} 21. Bc5 {[%emt 0:00:38]} bxc4 {[%emt 0:05:01]} 22. Qxc4 {[%emt 0:00:22]} Ba6 {[%emt 0:04:55]} 23. Qa2 {[%emt 0:02:14]} Bb5 {[%emt 0:05:05]} 24. Qc2 {[%emt 0:03:42]} Qd5 {[%emt 0:02:24]} 25. Bxe4 {[%emt 0:03:17]} Qxe5 {[%emt 0:00:37]} 26. Bxh7+ {[%emt 0:00:23]} Kh8 {[%emt 0:00:13]} 27. Be4 {[%emt 0:00:13]} f5 {[%emt 0:01:53]} 28. Bf3 {[%emt 0:00:34]} Bf6 {[%emt 0:00:37]} 29. Kg2 {[%emt 0:03:04]} g5 {[%emt 0:01:49]} 30. h3 {[%emt 0:00:16]} Kg7 {[%emt 0:00:16]} 31. g4 {[%emt 0:04:24]} Qc3 {[%emt 0:02:16]} 32. Qa2 {[%emt 0:00:58]} Be5 {[%emt 0:00:55]} 33. Qxe6 {[%emt 0:00:20]} fxg4 {[%emt 0:00:31]} 34. Qe7+ {[%emt 0:01:16]} Kh6 {[%emt 0:00:38]} 35. hxg4 {[%emt 0:00:25]} Bc4 {[%emt 0:00:23]} 36. Be4 {[%emt 0:02:27]} Bf6 {[%emt 0:00:41]} 37. Qh7# {[%emt 0:00:12]} 1-0